[Event "Late-Titled-Tuesday-Blitz-June-18-2024"]
[Site "Chess.com"]
[Date "2024.06.18"]
[Round "5"]
[White "merinasian"]
[Black "marvinguevara"]
[Result "1-0"]
[WhiteElo "2400"]
[BlackElo "2153"]
[TimeControl "180+1"]
[EndTime "14:58:04 PDT"]
[Termination "merinasian won on time"]

1. d4 {[%clk 0:03:00.9]} 1... Nf6 {[%clk 0:02:57.1]} 2. Nf3 {[%clk 0:03:01.4]}
2... d6 {[%clk 0:02:58]} 3. g3 {[%clk 0:02:58.4]} 3... g6 {[%clk 0:02:58.3]} 4.
Bg2 {[%clk 0:02:58.9]} 4... Bg7 {[%clk 0:02:58.4]} 5. O-O {[%clk 0:02:59.6]}
5... O-O {[%clk 0:02:57.9]} 6. b3 {[%clk 0:03:00.3]} 6... Nbd7 {[%clk
0:02:49.9]} 7. Bb2 {[%clk 0:02:59.8]} 7... c6 {[%clk 0:02:49.5]} 8. c4 {[%clk
0:02:57.7]} 8... Qe8 {[%clk 0:02:49.3]} 9. Nc3 {[%clk 0:02:55]} 9... e5 {[%clk
0:02:48.2]} 10. dxe5 {[%clk 0:02:52]} 10... dxe5 {[%clk 0:02:47.9]} 11. Ba3
{[%clk 0:02:51.7]} 11... c5 {[%clk 0:02:42.3]} 12. Nb5 {[%clk 0:02:44.5]} 12...
Qd8 {[%clk 0:02:32.4]} 13. Nd2 {[%clk 0:02:40.1]} 13... Qa5 {[%clk 0:02:16.2]}
14. Bb2 {[%clk 0:02:39.5]} 14... a6 {[%clk 0:02:14.9]} 15. Nd6 {[%clk
0:02:39.4]} 15... Qc7 {[%clk 0:02:06.5]} 16. Nxc8 {[%clk 0:02:08.7]} 16... Raxc8
{[%clk 0:02:03.1]} 17. Qc2 {[%clk 0:02:03.8]} 17... Rfd8 {[%clk 0:01:56.6]} 18.
Rad1 {[%clk 0:02:03.4]} 18... Nf8 {[%clk 0:01:56.1]} 19. Nf3 {[%clk 0:01:59.9]}
19... e4 {[%clk 0:01:52]} 20. Ng5 {[%clk 0:01:58.5]} 20... e3 {[%clk 0:01:49.8]}
21. fxe3 {[%clk 0:01:57.9]} 21... Qe7 {[%clk 0:01:42.7]} 22. Ne4 {[%clk
0:01:42.7]} 22... Nxe4 {[%clk 0:01:41.4]} 23. Bxg7 {[%clk 0:01:42.1]} 23... Kxg7
{[%clk 0:01:42.3]} 24. Qxe4 {[%clk 0:01:41.5]} 24... Qxe4 {[%clk 0:01:18.7]} 25.
Bxe4 {[%clk 0:01:42.4]} 25... Rxd1 {[%clk 0:01:14.2]} 26. Rxd1 {[%clk
0:01:41.4]} 26... Rc7 {[%clk 0:01:14.9]} 27. Rd8 {[%clk 0:01:25.2]} 27... Nd7
{[%clk 0:01:06.9]} 28. Bd5 {[%clk 0:01:21.6]} 28... b5 {[%clk 0:00:23]} 29. e4
{[%clk 0:01:14.3]} 29... bxc4 {[%clk 0:00:20.5]} 30. Bxc4 {[%clk 0:01:14.3]}
30... a5 {[%clk 0:00:20.3]} 31. Ra8 {[%clk 0:01:13.4]} 31... Nf6 {[%clk
0:00:20.4]} 32. e5 {[%clk 0:01:12.5]} 32... Ng4 {[%clk 0:00:20.6]} 33. e6 {[%clk
0:01:12.5]} 33... fxe6 {[%clk 0:00:19.5]} 34. Bxe6 {[%clk 0:01:11.2]} 34... Ne3
{[%clk 0:00:19.7]} 35. Rxa5 {[%clk 0:01:10.4]} 35... Nd1 {[%clk 0:00:19.2]} 36.
Bc4 {[%clk 0:01:05.1]} 36... Nc3 {[%clk 0:00:18.8]} 37. Ra8 {[%clk 0:01:00.7]}
37... Kf6 {[%clk 0:00:18.8]} 38. Re8 {[%clk 0:00:58.7]} 38... Kf5 {[%clk
0:00:17.2]} 39. a4 {[%clk 0:00:58.1]} 39... Ne4 {[%clk 0:00:11.6]} 40. a5 {[%clk
0:00:55.7]} 40... Nd6 {[%clk 0:00:09.6]} 41. Bd3+ {[%clk 0:00:55.1]} 41... Kf6
{[%clk 0:00:09.8]} 42. Rb8 {[%clk 0:00:52.8]} 42... Ra7 {[%clk 0:00:08.7]} 43.
a6 {[%clk 0:00:52.6]} 43... c4 {[%clk 0:00:07.4]} 44. Rb6 {[%clk 0:00:52.7]}
44... Ke7 {[%clk 0:00:06.8]} 45. Bxc4 {[%clk 0:00:51.8]} 45... Rc7 {[%clk
0:00:02.1]} 46. Bd5 {[%clk 0:00:45.4]} 46... Nc8 {[%clk 0:00:01.7]} 47. Rb7
{[%clk 0:00:44.8]} 47... Kd6 {[%clk 0:00:02]} 48. Rxc7 {[%clk 0:00:42.1]} 48...
Kxc7 {[%clk 0:00:02.9]} 49. Bb7 {[%clk 0:00:39]} 49... Na7 {[%clk 0:00:02.4]}
50. Kg2 {[%clk 0:00:39.3]} 50... Kb6 {[%clk 0:00:02.6]} 51. Kf3 {[%clk
0:00:39.3]} 51... Kc5 {[%clk 0:00:02.8]} 52. Kf4 {[%clk 0:00:39.1]} 52... Kb4
{[%clk 0:00:02.9]} 53. Kg5 {[%clk 0:00:39.1]} 53... Kxb3 {[%clk 0:00:02.4]} 54.
e4 {[%clk 0:00:40]} 54... Kc4 {[%clk 0:00:02.2]} 55. e5 {[%clk 0:00:40.6]} 55...
Kc5 {[%clk 0:00:02.1]} 56. Kf6 {[%clk 0:00:40.3]} 1-0

[Event "Late-Titled-Tuesday-Blitz-June-18-2024"]
[Site "Chess.com"]
[Date "2024.06.18"]
[Round "5"]
[White "ChristopherYoo"]
[Black "HansOnTwitch"]
[Result "0-1"]
[WhiteElo "2997"]
[BlackElo "3136"]
[TimeControl "180+1"]
[EndTime "14:58:08 PDT"]
[Termination "HansOnTwitch won by checkmate"]

1. e4 {[%clk 0:02:56.9]} 1... c5 {[%clk 0:02:59.5]} 2. Nf3 {[%clk 0:02:54]} 2...
Nc6 {[%clk 0:02:58]} 3. b4 {[%clk 0:02:30.3]} 3... cxb4 {[%clk 0:02:35.2]} 4. d4
{[%clk 0:02:29.7]} 4... e6 {[%clk 0:02:21.6]} 5. Bd3 {[%clk 0:02:28.7]} 5... d5
{[%clk 0:02:18.8]} 6. e5 {[%clk 0:02:28.5]} 6... Nge7 {[%clk 0:02:15.4]} 7. h4
{[%clk 0:01:28]} 7... Nf5 {[%clk 0:02:12.8]} 8. Bxf5 {[%clk 0:01:24.6]} 8...
exf5 {[%clk 0:02:12.7]} 9. Bg5 {[%clk 0:01:25.2]} 9... Be7 {[%clk 0:01:49]} 10.
Nbd2 {[%clk 0:01:23.8]} 10... O-O {[%clk 0:01:45.5]} 11. Nb3 {[%clk 0:01:22.3]}
11... a5 {[%clk 0:01:44.1]} 12. O-O {[%clk 0:01:19]} 12... h6 {[%clk 0:01:41.1]}
13. Bxe7 {[%clk 0:01:18.7]} 13... Qxe7 {[%clk 0:01:42]} 14. Re1 {[%clk
0:01:12.3]} 14... b6 {[%clk 0:01:41.2]} 15. Qd2 {[%clk 0:01:08.8]} 15... Ba6
{[%clk 0:01:31.7]} 16. Qf4 {[%clk 0:01:08.7]} 16... Qe6 {[%clk 0:01:30.5]} 17.
h5 {[%clk 0:01:06.5]} 17... Rfc8 {[%clk 0:01:29.8]} 18. Rac1 {[%clk 0:00:44.5]}
18... Ne7 {[%clk 0:01:28.2]} 19. Re3 {[%clk 0:00:44.3]} 19... Rc6 {[%clk
0:01:12.3]} 20. Ne1 {[%clk 0:00:44.3]} 20... Rac8 {[%clk 0:01:10.9]} 21. Rg3
{[%clk 0:00:42.4]} 21... Rc3 {[%clk 0:01:10.7]} 22. Rxc3 {[%clk 0:00:33.6]}
22... bxc3 {[%clk 0:01:08.8]} 23. Rb1 {[%clk 0:00:31.7]} 23... Bc4 {[%clk
0:01:04.6]} 24. a4 {[%clk 0:00:27.5]} 24... Qd7 {[%clk 0:00:52.3]} 25. Nc1
{[%clk 0:00:25.8]} 25... Qe6 {[%clk 0:00:22.7]} 26. Qe3 {[%clk 0:00:21.6]} 26...
Ba6 {[%clk 0:00:17.3]} 27. Ned3 {[%clk 0:00:21.8]} 27... Bxd3 {[%clk 0:00:16.4]}
28. Nxd3 {[%clk 0:00:22]} 28... Rc4 {[%clk 0:00:16.4]} 29. Nf4 {[%clk 0:00:22]}
29... Qc6 {[%clk 0:00:10.8]} 30. e6 {[%clk 0:00:22.6]} 30... f6 {[%clk
0:00:04.9]} 31. Qg3 {[%clk 0:00:15.6]} 31... Qd6 {[%clk 0:00:03.1]} 32. Qe3
{[%clk 0:00:05.2]} 32... Rxa4 {[%clk 0:00:02.7]} 33. Ng6 {[%clk 0:00:04.9]}
33... Nxg6 {[%clk 0:00:02.4]} 34. hxg6 {[%clk 0:00:05.2]} 34... Kf8 {[%clk
0:00:03]} 35. Qxc3 {[%clk 0:00:04.2]} 35... Rc4 {[%clk 0:00:03.6]} 36. Qe3
{[%clk 0:00:01.5]} 36... Ke7 {[%clk 0:00:04.1]} 37. Rb5 {[%clk 0:00:01.2]} 37...
a4 {[%clk 0:00:04.2]} 38. Qc1 {[%clk 0:00:01.1]} 38... Qc6 {[%clk 0:00:03.5]}
39. Qb2 {[%clk 0:00:01.5]} 39... Rxc2 {[%clk 0:00:01.1]} 40. Qb4+ {[%clk
0:00:01.5]} 40... Qd6 {[%clk 0:00:01.8]} 41. Qxa4 {[%clk 0:00:02]} 41... Rc1+
{[%clk 0:00:02.1]} 42. Qd1 {[%clk 0:00:02.7]} 42... Rxd1# {[%clk 0:00:02.7]} 0-1

[Event "Late-Titled-Tuesday-Blitz-June-18-2024"]
[Site "Chess.com"]
[Date "2024.06.18"]
[Round "5"]
[White "ansko1999"]
[Black "Chempiblinka"]
[Result "1-0"]
[WhiteElo "2599"]
[BlackElo "2376"]
[TimeControl "180+1"]
[EndTime "14:58:08 PDT"]
[Termination "ansko1999 won on time"]

1. b3 {[%clk 0:03:00.9]} 1... Nf6 {[%clk 0:02:58.1]} 2. d4 {[%clk 0:03:00.1]}
2... g6 {[%clk 0:02:58.1]} 3. e3 {[%clk 0:03:00.1]} 3... Bg7 {[%clk 0:02:58.6]}
4. Bb2 {[%clk 0:03:00.4]} 4... O-O {[%clk 0:02:58.2]} 5. Nf3 {[%clk 0:03:00.2]}
5... d6 {[%clk 0:02:58.7]} 6. c4 {[%clk 0:02:57.8]} 6... Nbd7 {[%clk 0:02:58.4]}
7. Nc3 {[%clk 0:02:56.6]} 7... c6 {[%clk 0:02:46]} 8. Be2 {[%clk 0:02:53.4]}
8... e5 {[%clk 0:02:45.8]} 9. dxe5 {[%clk 0:02:52.3]} 9... Nxe5 {[%clk
0:02:38.9]} 10. O-O {[%clk 0:02:51.7]} 10... Qe7 {[%clk 0:02:34]} 11. Qd2 {[%clk
0:02:49.4]} 11... Bf5 {[%clk 0:02:22.6]} 12. Rad1 {[%clk 0:02:46.3]} 12... Rfd8
{[%clk 0:02:20.8]} 13. h3 {[%clk 0:02:43.5]} 13... Ne4 {[%clk 0:02:17]} 14. Nxe4
{[%clk 0:02:41.6]} 14... Bxe4 {[%clk 0:02:17.9]} 15. Nd4 {[%clk 0:02:35.4]}
15... c5 {[%clk 0:01:37.3]} 16. Nb5 {[%clk 0:02:25.7]} 16... Qg5 {[%clk
0:01:37.5]} 17. f3 {[%clk 0:02:21.6]} 17... Bc6 {[%clk 0:01:31.8]} 18. Nc7
{[%clk 0:02:06.6]} 18... Rac8 {[%clk 0:01:29.3]} 19. Nd5 {[%clk 0:02:05.9]}
19... Qh4 {[%clk 0:01:04.7]} 20. f4 {[%clk 0:01:52.9]} 20... Bxd5 {[%clk
0:01:04.1]} 21. Qxd5 {[%clk 0:01:46.2]} 21... Nf3+ {[%clk 0:00:59]} 22. Bxf3
{[%clk 0:01:46]} 22... Bxb2 {[%clk 0:00:59.7]} 23. Qxb7 {[%clk 0:01:45.6]} 23...
a5 {[%clk 0:00:50.8]} 24. Bd5 {[%clk 0:01:40.2]} 24... Qf6 {[%clk 0:00:46.8]}
25. g4 {[%clk 0:01:33.8]} 25... Rb8 {[%clk 0:00:46.9]} 26. Qa7 {[%clk
0:01:18.7]} 26... a4 {[%clk 0:00:42.6]} 27. g5 {[%clk 0:01:10.8]} 27... Qc3
{[%clk 0:00:37.9]} 28. Qxf7+ {[%clk 0:01:06.8]} 28... Kh8 {[%clk 0:00:38.6]} 29.
Rf3 {[%clk 0:00:57.7]} 29... axb3 {[%clk 0:00:35.9]} 30. axb3 {[%clk 0:00:58.1]}
30... Qxb3 {[%clk 0:00:30.5]} 31. Rdf1 {[%clk 0:00:56.8]} 31... Rf8 {[%clk
0:00:27.2]} 32. Qd7 {[%clk 0:00:55.4]} 32... Rbd8 {[%clk 0:00:26.8]} 33. Qg4
{[%clk 0:00:54.8]} 33... Bg7 {[%clk 0:00:26.1]} 34. h4 {[%clk 0:00:54.7]} 34...
Qd3 {[%clk 0:00:23.4]} 35. h5 {[%clk 0:00:54]} 35... Qf5 {[%clk 0:00:22.2]} 36.
Qxf5 {[%clk 0:00:52.6]} 36... gxf5 {[%clk 0:00:20.4]} 37. h6 {[%clk 0:00:50.5]}
37... Bc3 {[%clk 0:00:19.6]} 38. Kg2 {[%clk 0:00:48.3]} 38... Bb2 {[%clk
0:00:18.9]} 39. Rb1 {[%clk 0:00:47.5]} 39... Rb8 {[%clk 0:00:16.9]} 40. Rf2
{[%clk 0:00:45.5]} 40... Bc3 {[%clk 0:00:16.3]} 41. Rxb8 {[%clk 0:00:44.3]}
41... Rxb8 {[%clk 0:00:16.8]} 42. Ra2 {[%clk 0:00:44]} 42... Rb2+ {[%clk
0:00:14.9]} 43. Rxb2 {[%clk 0:00:44.1]} 43... Bxb2 {[%clk 0:00:15.8]} 44. Be6
{[%clk 0:00:44.5]} 44... Bc3 {[%clk 0:00:13.8]} 45. Bxf5 {[%clk 0:00:44]} 45...
Kg8 {[%clk 0:00:13.8]} 46. Kf3 {[%clk 0:00:43.4]} 46... Bb2 {[%clk 0:00:12.1]}
47. Be6+ {[%clk 0:00:43.3]} 47... Kf8 {[%clk 0:00:11.5]} 48. f5 {[%clk
0:00:39.2]} 48... Be5 {[%clk 0:00:10.6]} 49. f6 {[%clk 0:00:37.2]} 49... Bc3
{[%clk 0:00:07.7]} 50. Kf4 {[%clk 0:00:36.7]} 50... Be5+ {[%clk 0:00:07.6]} 51.
Kf5 {[%clk 0:00:36.5]} 51... Bc3 {[%clk 0:00:07.3]} 52. g6 {[%clk 0:00:34.4]}
52... hxg6+ {[%clk 0:00:03.9]} 53. Kxg6 {[%clk 0:00:35.3]} 53... d5 {[%clk
0:00:03.5]} 54. h7 {[%clk 0:00:35.2]} 1-0

[Event "Late-Titled-Tuesday-Blitz-June-18-2024"]
[Site "Chess.com"]
[Date "2024.06.18"]
[Round "5"]
[White "Grischuk"]
[Black "TigrVShlyape"]
[Result "1/2-1/2"]
[WhiteElo "3123"]
[BlackElo "3005"]
[TimeControl "180+1"]
[EndTime "14:58:11 PDT"]
[Termination "Game drawn - insufficient material"]

1. d4 {[%clk 0:02:57.4]} 1... d5 {[%clk 0:02:59.2]} 2. Nf3 {[%clk 0:02:55.6]}
2... c6 {[%clk 0:02:58.2]} 3. Bf4 {[%clk 0:02:48.5]} 3... Qb6 {[%clk 0:02:56.8]}
4. Qc1 {[%clk 0:02:47.8]} 4... Bf5 {[%clk 0:02:55.7]} 5. e3 {[%clk 0:02:46.2]}
5... e6 {[%clk 0:02:55.8]} 6. Nbd2 {[%clk 0:02:39.1]} 6... Nd7 {[%clk
0:02:54.3]} 7. Nh4 {[%clk 0:02:31]} 7... Bg6 {[%clk 0:02:53.8]} 8. Nxg6 {[%clk
0:02:24.4]} 8... hxg6 {[%clk 0:02:53.6]} 9. c4 {[%clk 0:02:23.9]} 9... Ngf6
{[%clk 0:02:49.8]} 10. c5 {[%clk 0:02:17]} 10... Qa5 {[%clk 0:02:41.3]} 11. h3
{[%clk 0:01:58.7]} 11... e5 {[%clk 0:02:33.8]} 12. Bh2 {[%clk 0:01:34.5]} 12...
exd4 {[%clk 0:02:21]} 13. exd4 {[%clk 0:01:35.4]} 13... b6 {[%clk 0:02:21.2]}
14. cxb6 {[%clk 0:01:24.2]} 14... Qxb6 {[%clk 0:02:21]} 15. Bd3 {[%clk 0:01:11]}
15... Bb4 {[%clk 0:02:16.7]} 16. O-O {[%clk 0:01:10.6]} 16... O-O {[%clk
0:02:15.5]} 17. Nf3 {[%clk 0:01:08.3]} 17... Rfe8 {[%clk 0:02:10.8]} 18. Qc2
{[%clk 0:01:03.2]} 18... a5 {[%clk 0:02:06.3]} 19. Bf4 {[%clk 0:00:54]} 19... a4
{[%clk 0:01:57.4]} 20. Rac1 {[%clk 0:00:48.6]} 20... Rec8 {[%clk 0:01:20.5]} 21.
Be3 {[%clk 0:00:40.8]} 21... Qb7 {[%clk 0:01:12.1]} 22. Ne5 {[%clk 0:00:33.6]}
22... c5 {[%clk 0:01:11.6]} 23. Nxd7 {[%clk 0:00:27.2]} 23... cxd4 {[%clk
0:01:09.5]} 24. Nxf6+ {[%clk 0:00:25.7]} 24... gxf6 {[%clk 0:01:09.2]} 25. Qe2
{[%clk 0:00:24.5]} 25... dxe3 {[%clk 0:01:08.7]} 26. Qxe3 {[%clk 0:00:24.3]}
26... Kg7 {[%clk 0:01:05.1]} 27. Qd4 {[%clk 0:00:22.1]} 27... Bd6 {[%clk
0:01:04.1]} 28. Rxc8 {[%clk 0:00:21.3]} 28... Rxc8 {[%clk 0:01:03.8]} 29. Qxa4
{[%clk 0:00:21.3]} 29... Ra8 {[%clk 0:00:59.8]} 30. Qb3 {[%clk 0:00:17.9]} 30...
Qxb3 {[%clk 0:00:59.8]} 31. axb3 {[%clk 0:00:18.8]} 31... Rb8 {[%clk 0:00:58.3]}
32. Bc2 {[%clk 0:00:18.1]} 32... Rc8 {[%clk 0:00:58.3]} 33. Bb1 {[%clk
0:00:16.2]} 33... Be5 {[%clk 0:00:55.9]} 34. Rd1 {[%clk 0:00:15.8]} 34... Bxb2
{[%clk 0:00:55.7]} 35. Kf1 {[%clk 0:00:14.8]} 35... d4 {[%clk 0:00:51.6]} 36.
Ke2 {[%clk 0:00:13.1]} 36... Bc3 {[%clk 0:00:50.5]} 37. Bd3 {[%clk 0:00:12.7]}
37... Ra8 {[%clk 0:00:50.2]} 38. Bc4 {[%clk 0:00:11.2]} 38... Ra2+ {[%clk
0:00:49.8]} 39. Kf3 {[%clk 0:00:11.6]} 39... f5 {[%clk 0:00:50.3]} 40. g4 {[%clk
0:00:09.7]} 40... fxg4+ {[%clk 0:00:50]} 41. hxg4 {[%clk 0:00:09.7]} 41... Kf6
{[%clk 0:00:44.1]} 42. g5+ {[%clk 0:00:08.2]} 42... Kxg5 {[%clk 0:00:43.9]} 43.
Bxf7 {[%clk 0:00:08.5]} 43... Kf6 {[%clk 0:00:44.1]} 44. Bc4 {[%clk 0:00:08.3]}
44... Ra1 {[%clk 0:00:43.3]} 45. Rxa1 {[%clk 0:00:07.1]} 45... Bxa1 {[%clk
0:00:43.9]} 46. b4 {[%clk 0:00:04.6]} 46... Bc3 {[%clk 0:00:43.6]} 47. b5 {[%clk
0:00:05]} 47... Ba5 {[%clk 0:00:40.9]} 48. Ke4 {[%clk 0:00:05.4]} 48... Bb6
{[%clk 0:00:36.7]} 49. Bd3 {[%clk 0:00:05.1]} 49... Ke6 {[%clk 0:00:36.5]} 50.
f4 {[%clk 0:00:04.3]} 50... Kf6 {[%clk 0:00:35.5]} 51. Kf3 {[%clk 0:00:03.2]}
51... Bc7 {[%clk 0:00:35.5]} 52. Kg4 {[%clk 0:00:03.3]} 52... Bb6 {[%clk
0:00:35.3]} 53. Kf3 {[%clk 0:00:03.6]} 53... Bc7 {[%clk 0:00:35.7]} 54. Ke4
{[%clk 0:00:03.8]} 54... g5 {[%clk 0:00:34.1]} 55. fxg5+ {[%clk 0:00:04.2]}
55... Kxg5 {[%clk 0:00:34.4]} 56. Kxd4 {[%clk 0:00:04.5]} 56... Bb6+ {[%clk
0:00:34.8]} 57. Kd5 {[%clk 0:00:05.4]} 57... Ba7 {[%clk 0:00:35]} 58. Kc6 {[%clk
0:00:06.3]} 58... Bd4 {[%clk 0:00:35.2]} 59. b6 {[%clk 0:00:07.2]} 59... Bxb6
{[%clk 0:00:35.5]} 1/2-1/2

[Event "Late-Titled-Tuesday-Blitz-June-18-2024"]
[Site "Chess.com"]
[Date "2024.06.18"]
[Round "5"]
[White "DryCounty"]
[Black "wonderfultime"]
[Result "0-1"]
[WhiteElo "2655"]
[BlackElo "3023"]
[TimeControl "180+1"]
[EndTime "14:58:11 PDT"]
[Termination "wonderfultime won on time"]

1. e4 {[%clk 0:03:00.9]} 1... e5 {[%clk 0:02:56.7]} 2. Nf3 {[%clk 0:03:00.1]}
2... Nc6 {[%clk 0:02:55.6]} 3. Nc3 {[%clk 0:02:59.3]} 3... Nf6 {[%clk
0:02:54.1]} 4. Be2 {[%clk 0:02:59.1]} 4... Bb4 {[%clk 0:02:51]} 5. Nd5 {[%clk
0:02:58.3]} 5... Be7 {[%clk 0:02:49.3]} 6. d3 {[%clk 0:02:56.4]} 6... d6 {[%clk
0:02:48.5]} 7. Nxe7 {[%clk 0:02:54.9]} 7... Nxe7 {[%clk 0:02:46.4]} 8. O-O
{[%clk 0:02:55.3]} 8... Ng6 {[%clk 0:02:46.5]} 9. c3 {[%clk 0:02:50.2]} 9... O-O
{[%clk 0:02:46]} 10. Re1 {[%clk 0:02:48]} 10... Re8 {[%clk 0:02:41.8]} 11. Bf1
{[%clk 0:02:46.6]} 11... h6 {[%clk 0:02:42.2]} 12. h3 {[%clk 0:02:45.9]} 12...
b6 {[%clk 0:02:39.6]} 13. a4 {[%clk 0:02:39.7]} 13... a5 {[%clk 0:02:37.6]} 14.
Nd2 {[%clk 0:02:29.1]} 14... Bb7 {[%clk 0:02:25.7]} 15. Nc4 {[%clk 0:02:28.9]}
15... d5 {[%clk 0:02:24.4]} 16. exd5 {[%clk 0:02:26.3]} 16... Nxd5 {[%clk
0:02:23.8]} 17. d4 {[%clk 0:02:15.5]} 17... exd4 {[%clk 0:02:03.1]} 18. Rxe8+
{[%clk 0:02:11.9]} 18... Qxe8 {[%clk 0:02:04]} 19. Qxd4 {[%clk 0:02:07.3]} 19...
Rd8 {[%clk 0:01:56.8]} 20. Qg4 {[%clk 0:01:52.1]} 20... Qe1 {[%clk 0:01:44.2]}
21. Qe2 {[%clk 0:01:35.5]} 21... Re8 {[%clk 0:01:42.5]} 22. Qxe1 {[%clk
0:01:35]} 22... Rxe1 {[%clk 0:01:43.4]} 23. f3 {[%clk 0:01:03.7]} 23... Ba6
{[%clk 0:01:42.7]} 24. b3 {[%clk 0:01:02.6]} 24... Bxc4 {[%clk 0:00:55.7]} 25.
bxc4 {[%clk 0:01:03.5]} 25... Nxc3 {[%clk 0:00:55.9]} 26. Kf2 {[%clk 0:00:45.2]}
26... Rd1 {[%clk 0:00:56]} 27. c5 {[%clk 0:00:37.8]} 27... bxc5 {[%clk
0:00:52.2]} 28. Bc4 {[%clk 0:00:34.3]} 28... Ne5 {[%clk 0:00:52.2]} 29. Be2
{[%clk 0:00:20.6]} 29... Nxe2 {[%clk 0:00:52.1]} 30. Kxe2 {[%clk 0:00:20.3]}
30... Rg1 {[%clk 0:00:52.8]} 31. Rb1 {[%clk 0:00:18.1]} 31... Nc6 {[%clk
0:00:45.1]} 32. Kf2 {[%clk 0:00:14.9]} 32... Rh1 {[%clk 0:00:45.2]} 33. Ra1
{[%clk 0:00:08.6]} 33... f6 {[%clk 0:00:30.9]} 34. Bb2 {[%clk 0:00:08.6]} 34...
Rxa1 {[%clk 0:00:31.2]} 35. Bxa1 {[%clk 0:00:09.5]} 35... Kf7 {[%clk 0:00:31.8]}
36. Ke3 {[%clk 0:00:09.2]} 36... Ke6 {[%clk 0:00:32.5]} 37. Ke4 {[%clk
0:00:07.3]} 37... f5+ {[%clk 0:00:32.4]} 38. Kd3 {[%clk 0:00:07.5]} 38... Ne5+
{[%clk 0:00:20.6]} 39. Kd2 {[%clk 0:00:07.4]} 39... g5 {[%clk 0:00:20.4]} 40.
Bc3 {[%clk 0:00:06.1]} 40... Kd5 {[%clk 0:00:20.9]} 41. Kc2 {[%clk 0:00:04.7]}
41... Nc6 {[%clk 0:00:20]} 42. g4 {[%clk 0:00:04.9]} 42... f4 {[%clk 0:00:14.9]}
43. Bg7 {[%clk 0:00:04.4]} 43... Nd4+ {[%clk 0:00:14.4]} 44. Kc3 {[%clk
0:00:03.5]} 44... Nxf3 {[%clk 0:00:14.7]} 45. Bxh6 {[%clk 0:00:03.8]} 45... c4
{[%clk 0:00:12]} 46. h4 {[%clk 0:00:01.2]} 46... gxh4 {[%clk 0:00:11.4]} 47.
Bxf4 {[%clk 0:00:01.3]} 47... h3 {[%clk 0:00:12.3]} 48. g5 {[%clk 0:00:01]}
48... Nxg5 {[%clk 0:00:12.6]} 0-1

[Event "Late-Titled-Tuesday-Blitz-June-18-2024"]
[Site "Chess.com"]
[Date "2024.06.18"]
[Round "5"]
[White "ncofre98"]
[Black "Millerkallpa"]
[Result "1-0"]
[WhiteElo "2562"]
[BlackElo "2236"]
[TimeControl "180+1"]
[EndTime "14:58:12 PDT"]
[Termination "ncofre98 won on time"]

1. e4 {[%clk 0:03:00.9]} 1... e5 {[%clk 0:02:50.5]} 2. Nf3 {[%clk 0:03:00.2]}
2... Nc6 {[%clk 0:02:50.4]} 3. Bb5 {[%clk 0:02:59.4]} 3... a6 {[%clk 0:02:50.3]}
4. Ba4 {[%clk 0:02:59.5]} 4... Nf6 {[%clk 0:02:49.5]} 5. d3 {[%clk 0:02:59.4]}
5... d6 {[%clk 0:02:42.7]} 6. c3 {[%clk 0:02:59]} 6... g6 {[%clk 0:02:37.3]} 7.
Nbd2 {[%clk 0:02:58.5]} 7... Bg7 {[%clk 0:02:35.6]} 8. Nf1 {[%clk 0:02:58.6]}
8... O-O {[%clk 0:02:25.2]} 9. Ng3 {[%clk 0:02:58.4]} 9... b5 {[%clk 0:02:13.9]}
10. Bc2 {[%clk 0:02:49]} 10... h6 {[%clk 0:02:09.4]} 11. O-O {[%clk 0:02:48.7]}
11... Be6 {[%clk 0:01:58.9]} 12. Re1 {[%clk 0:02:45.4]} 12... Re8 {[%clk
0:01:57.7]} 13. a4 {[%clk 0:02:36.3]} 13... b4 {[%clk 0:01:53.3]} 14. d4 {[%clk
0:02:31.5]} 14... exd4 {[%clk 0:01:45.6]} 15. cxd4 {[%clk 0:02:30.5]} 15... Bg4
{[%clk 0:01:43.8]} 16. h3 {[%clk 0:02:15.2]} 16... Bxf3 {[%clk 0:01:40.7]} 17.
gxf3 {[%clk 0:02:16.1]} 17... Na5 {[%clk 0:01:07.6]} 18. f4 {[%clk 0:01:43.4]}
18... c5 {[%clk 0:01:03.6]} 19. d5 {[%clk 0:01:39.8]} 19... Nd7 {[%clk
0:00:53.8]} 20. Rb1 {[%clk 0:01:36.1]} 20... c4 {[%clk 0:00:41.7]} 21. e5 {[%clk
0:01:21.8]} 21... dxe5 {[%clk 0:00:37]} 22. f5 {[%clk 0:01:21.7]} 22... Qh4
{[%clk 0:00:27.5]} 23. fxg6 {[%clk 0:01:15.7]} 23... fxg6 {[%clk 0:00:24.2]} 24.
Bxg6 {[%clk 0:01:16]} 24... Rf8 {[%clk 0:00:23.9]} 25. Bf5 {[%clk 0:00:55.9]}
25... Nc5 {[%clk 0:00:16.5]} 26. Qg4 {[%clk 0:00:38.5]} 26... Qxg4 {[%clk
0:00:16.1]} 27. hxg4 {[%clk 0:00:39.4]} 27... Rae8 {[%clk 0:00:15.1]} 28. Be3
{[%clk 0:00:37.2]} 28... Nab3 {[%clk 0:00:14.3]} 29. Rbd1 {[%clk 0:00:35.1]}
29... Rd8 {[%clk 0:00:12.5]} 30. Ne4 {[%clk 0:00:20.9]} 30... Nxe4 {[%clk
0:00:11.7]} 31. Bxe4 {[%clk 0:00:21.8]} 31... c3 {[%clk 0:00:08.5]} 32. bxc3
{[%clk 0:00:22.7]} 32... bxc3 {[%clk 0:00:08.8]} 33. d6 {[%clk 0:00:18.9]} 33...
Nd4 {[%clk 0:00:07.9]} 34. Rc1 {[%clk 0:00:14.8]} 34... Rxd6 {[%clk 0:00:06.7]}
35. Rxc3 {[%clk 0:00:14.1]} 35... Rb8 {[%clk 0:00:03.8]} 36. Kg2 {[%clk
0:00:13]} 36... Rbd8 {[%clk 0:00:03.5]} 37. Rec1 {[%clk 0:00:13.1]} 37... Bf6
{[%clk 0:00:02.5]} 38. Rc7 {[%clk 0:00:13]} 38... Bg5 {[%clk 0:00:02.4]} 39.
Bxg5 {[%clk 0:00:10.3]} 39... hxg5 {[%clk 0:00:03.3]} 40. Bh7+ {[%clk
0:00:08.1]} 40... Kf8 {[%clk 0:00:02.7]} 41. Rh1 {[%clk 0:00:07.5]} 41... R8d7
{[%clk 0:00:02.8]} 42. Rc8+ {[%clk 0:00:07.6]} 42... Kg7 {[%clk 0:00:02.9]} 43.
Be4 {[%clk 0:00:07.9]} 43... Rd8 {[%clk 0:00:02.8]} 44. Rh7+ {[%clk 0:00:07.8]}
44... Kf6 {[%clk 0:00:03.3]} 45. Rcc7 {[%clk 0:00:08.1]} 1-0